bitfinex-derivatives/quotes_ETHF0:USTF0_20260203
["timestamp","ask_amount","ask_price","bid_price","bid_amount"]
[1770139967514,2.52417882,2229.4,2228.6,4.01007135]
[1770139967715,2.52417882,2229.4,2228.7,4.00510995]
[1770139968311,2.52417882,2229.4,2228.7,4.07636178]
[1770139968511,2.52417882,2229.4,2228.6,4.01007135]
[1770139969009,2.53468758,2229.7,2228.7,4.03939373]
[1770139969208,2.53468758,2230.0,2228.9,4.03939373]
[1770139969407,2.53468758,2230.0,2229.1,4.00510995]
[1770139970014,2.53465127,2230.4,2229.2,4.03946635]
[1770139970214,2.54032637,2230.4,2229.2,4.03946635]
[1770139970416,2.53465127,2230.3,2229.2,4.03946635]
[1770139971215,2.53470355,2230.6,2229.6,4.00510995]
[1770139971416,5.22713761,2232.2,2229.8,2.36023719]
[1770139971609,13.31513761,2232.1,2229.8,4.07636178]
[1770139971913,5.22713761,2231.8,2229.3,4.00510995]
[1770139972109,5.22713761,2231.8,2229.3,6.36534714]
[1770139972306,5.23083958,2231.8,2229.4,2.36023719]
[1770139972510,33.216,2231.7,2229.4,2.36023719]
[1770139973207,5.23083958,2231.8,2229.4,2.36023719]
[1770139973515,2.32579475,2231.6,2229.5,6.36534714]
[1770139974213,2.4229111,2231.4,2229.5,6.36534714]
[1770139974416,2.4229111,2231.2,2229.5,6.36534714]
[1770139974614,2.4229111,2231.0,2229.5,6.36534714]
[1770139974813,2.4229111,2230.8,2229.5,6.36534714]
[1770139975016,2.4229111,2230.6,2229.5,6.36534714]
[1770139976111,6.9399111,2230.5,2229.5,6.36534714]
[1770139977012,25.123,2231.7,2229.8,2.4517317]
[1770139977013,2.4229111,2231.7,2229.8,2.4517317]
[1770139977211,7.79585595,2232.6,2229.7,6.28867583]
[1770139977212,2.4229111,2231.5,2230.2,2.4517317]
[1770139977413,2.4229111,2231.5,2230.2,4.00833305]
[1770139977814,5.0539111,2231.4,2230.3,6.45684165]
[1770139978011,2.4229111,2231.4,2230.3,6.45684165]
[1770139978214,2.4229111,2231.4,2230.4,2.4517317]
[1770139978623,2.4229111,2231.4,2230.4,6.45684165]
[1770139978920,2.4229111,2231.4,2230.5,4.070413]
[1770139979317,2.4229111,2231.4,2230.3,8.07552295]
[1770139979513,4.512,2231.3,2230.3,4.00510995]
[1770139979822,2.4229111,2231.4,2230.5,2.4517317]
[1770139980919,2.4229111,2231.4,2230.5,4.070413]
[1770139981122,2.4229111,2231.4,2230.2,0.0032231]
[1770139981418,2.4229111,2231.2,2230.2,0.0032231]
[1770139982718,2.4229111,2231.0,2230.2,0.0032231]
[1770139982918,2.4229111,2230.8,2230.2,0.0032231]
[1770139983924,2.4229111,2231.6,2230.2,6.46006475]
[1770139984122,2.4229111,2231.4,2230.4,2.4517317]
[1770139984424,3.588,2231.7,2230.6,2.4517317]
[1770139984615,4.506,2231.6,2230.5,4.00510995]
[1770139984819,4.506,2231.6,2230.5,2.4517317]
[1770139985014,4.506,2231.6,2230.6,2.4517317]
[1770139985523,4.505,2231.5,2230.6,2.4517317]
[1770139985723,4.505,2231.5,2230.6,6.51940706]
[1770139985925,4.505,2231.5,2230.6,2.4517317]
[1770139986219,4.505,2231.5,2229.9,3.75288678]
[1770139986425,6.218,2231.4,2229.1,2.55040216]
[1770139986822,44.388,2231.3,2229.6,2.55040216]
[1770139987022,48.892,2231.3,2229.6,2.55040216]
[1770139987222,40.8,2231.3,2229.6,2.55040216]
[1770139987422,8.095,2231.2,2229.8,2.55040216]
[1770139989026,2.62210867,2231.5,2229.8,2.55040216]
[1770139989223,0.00370197,2231.8,2230.1,4.4824]
[1770139989224,3.588,2231.4,2230.1,4.4824]
[1770139989425,3.588,2231.6,2230.3,2.55040216]
[1770139989627,4.525,2231.5,2230.3,2.55040216]
[1770139989930,4.524,2231.4,2230.6,2.55040216]
[1770139990229,0.00370197,2231.8,2230.6,7.03280216]
[1770139990528,0.00370197,2231.8,2230.9,2.55040216]
[1770139990730,0.00370197,2231.8,2230.9,7.03280216]
[1770139990918,2.62210867,2232.7,2231.2,2.55040216]
[1770139990919,4.526,2232.0,2231.2,2.55040216]
[1770139991320,4.526,2232.0,2231.3,4.4824]
[1770139991523,4.525,2231.9,2230.7,2.55040216]
[1770139991728,4.525,2231.9,2230.8,2.55040216]
[1770139991929,4.53026073,2231.9,2230.9,2.54784684]
[1770139992229,0.00511063,2231.8,2230.8,0.00359102]
[1770139992830,0.00511063,2231.8,2230.3,2.54784684]
[1770139993323,0.00151961,2231.6,2230.3,2.54784684]
[1770139993630,8.111,2231.5,2230.5,2.54964235]
[1770139993929,8.111,2231.5,2230.5,4.48718263]
[1770139994527,0.00151961,2231.8,2230.5,4.48718263]
[1770139994728,8.109,2231.7,2230.6,4.4824]
[1770139994928,0.00526073,2231.9,2230.6,4.4824]
[1770139995124,0.00526073,2231.9,2230.5,0.00478263]
[1770139995125,3.588,2232.5,2230.8,1.64608098]
[1770139995331,4.52,2232.4,2230.8,1.64608098]
[1770139995532,0.18983794,2232.3,2230.5,0.00478263]
[1770139995728,8.108,2232.2,2230.8,2.45548319]
[1770139995933,2.4229111,2231.8,2229.6,6.67507012]
[1770139996133,2.4229111,2231.7,2229.5,8.3211511]
[1770139996326,2.4229111,2231.6,2229.5,8.3211511]
[1770139996830,10.5319111,2231.5,2229.9,1.64608098]
[1770139997032,0.00550888,2231.6,2229.9,1.64608098]
[1770139997232,7.289,2231.5,2229.9,1.64608098]
[1770139997434,2.42841998,2231.6,2229.9,1.64608098]
[1770139997631,0.00550888,2231.6,2230.3,1.64608098]
[1770139997834,4.52850888,2231.6,2230.4,2.4517317]
[1770139998437,0.00550888,2231.6,2230.4,2.4517317]
[1770139999138,4.521,2231.8,2230.8,2.4517317]
[1770139999335,2.4229111,2232.0,2230.8,2.4517317]
[1770139999534,4.521,2231.9,2230.8,2.4517317]
[1770139999934,2.4229111,2231.8,2230.8,2.4517317]
[1770140000735,0.00353997,2231.9,2230.8,2.4517317]
[1770140000929,2.40133744,2232.5,2231.2,2.51348647]
[1770140001134,2.40133744,2232.4,2231.2,2.51348647]
[1770140001436,2.40133744,2232.4,2231.2,5.18725959]
[1770140001637,2.40133744,2232.3,2230.9,2.67377312]
[1770140001838,2.40133744,2232.2,2230.9,0.00541704]
[1770140002639,2.40133744,2232.1,2230.9,0.00541704]
[1770140004640,2.40133744,2232.1,2229.9,12.41879264]
[1770140004641,2.62210867,2231.2,2229.8,2.55228429]
[1770140004837,2.62210867,2231.0,2229.8,2.55228429]
[1770140005039,2.62210867,2230.8,2229.3,2.55228429]
[1770140005339,41.95373878,2230.8,2229.3,2.55228429]
[1770140005544,2.62210867,2230.7,2229.3,2.55754914]
[1770140005741,2.62587867,2230.7,2229.3,2.55754914]
[1770140005941,0.00377,2230.7,2229.3,2.55754914]
[1770140006245,8.143,2230.6,2229.3,2.55754914]
[1770140007144,2.62587867,2230.7,2229.3,2.55754914]
[1770140007341,0.00377,2230.7,2229.3,2.55754914]
[1770140007540,4.566,2230.6,2229.3,2.55754914]
[1770140008544,4.571,2230.5,2229.3,2.55754914]
[1770140008848,4.572,2230.4,2229.5,2.5522843]
[1770140009044,0.00377,2230.7,2229.5,2.5522843]
[1770140009645,4.572,2230.6,2229.5,2.5522843]
[1770140009838,0.00377,2230.7,2229.5,2.5522843]
[1770140010042,4.57,2230.6,2229.5,2.5522843]
[1770140011545,4.57,2230.6,2229.3,0.00526485]
[1770140011850,2.62210867,2230.5,2229.3,0.00526485]
[1770140012048,2.62210867,2230.4,2229.3,0.00526485]
[1770140012542,2.62210867,2230.3,2229.3,0.00526485]
[1770140013250,3.588,2230.2,2229.3,2.55754915]
[1770140013448,8.167,2230.2,2229.3,2.55754915]
[1770140013949,8.167,2230.2,2229.3,0.00526485]
[1770140014448,8.17,2230.1,2229.3,0.00526485]
[1770140015850,8.176,2230.0,2229.3,0.00526485]
[1770140016546,43.42210867,2230.5,2229.3,0.00526485]
[1770140016751,8.178,2230.4,2229.3,2.55754915]
[1770140017249,2.62210867,2230.6,2229.3,2.55754915]
[1770140017453,3.589,2230.5,2229.3,2.55754915]
[1770140017749,4.606,2230.4,2229.3,2.55754915]
[1770140022659,2.62587867,2230.7,2229.3,2.55754915]
[1770140022953,4.606,2230.6,2229.3,2.55754915]
[1770140023456,0.00377,2230.7,2229.3,2.55754915]
[1770140023656,4.609,2230.6,2229.3,2.55754915]
[1770140024257,3.121,2230.5,2229.3,2.55754915]
[1770140024449,7.73,2230.6,2229.3,2.55754915]
[1770140024854,4.608,2230.5,2229.3,2.55754915]
[1770140026861,4.608,2230.5,2229.3,0.00526485]
[1770140027157,4.608,2230.4,2229.3,2.55754915]
[1770140027360,8.197,2230.4,2229.3,2.55754915]
[1770140027662,0.00377,2230.7,2229.3,2.55754915]
[1770140028059,6.5956098,2231.6,2229.6,2.5522843]
[1770140028060,3.589,2231.5,2229.6,2.5522843]
[1770140028359,4.151,2231.4,2229.7,2.5522843]
[1770140029157,0.00522228,2231.4,2229.9,2.5522843]
[1770140029757,0.00522228,2231.4,2230.1,2.5522843]
[1770140030364,0.00522228,2231.4,2230.3,2.5522843]
[1770140030863,0.00522228,2231.4,2230.4,2.55093395]
[1770140031261,5.74310867,2232.7,2230.9,2.55093395]
[1770140031464,2.62210867,2232.8,2231.0,2.55093395]
[1770140031657,4.605,2232.7,2231.1,2.55093395]
[1770140032358,4.61042561,2232.7,2231.1,2.5559004]
[1770140033266,4.602,2232.6,2231.1,2.5559004]
[1770140033566,0.00542561,2232.7,2231.1,2.5559004]
[1770140033766,0.00542561,2232.7,2231.4,2.55027172]
[1770140033966,0.00542561,2232.7,2231.5,2.55027172]
[1770140038166,3.121,2233.4,2231.5,2.55027172]
[1770140038365,2.63,2233.4,2231.5,2.55027172]
[1770140038768,4.587,2233.8,2231.5,2.55027172]
[1770140039167,4.59187338,2233.8,2231.5,2.55027172]
[1770140039369,3.121,2233.7,2231.5,2.55027172]
[1770140040471,4.59187338,2233.8,2232.0,2.55027172]
[1770140040472,0.00487338,2233.8,2232.0,2.55027172]
[1770140040669,6.20810867,2234.5,2232.0,2.55027172]
[1770140040670,3.586,2234.5,2232.6,2.55027172]
[1770140040866,3.586,2234.5,2232.7,2.55027172]
[1770140041266,6.707,2234.5,2232.7,2.55027172]
[1770140041772,6.71095684,2234.5,2232.7,2.5535141]
[1770140041973,3.12495684,2234.5,2232.7,2.5535141]
[1770140042169,3.586,2234.4,2232.7,2.5535141]
[1770140042373,4.599,2234.3,2232.7,2.5535141]
[1770140042675,3.12495684,2234.5,2232.7,2.5535141]
[1770140042969,0.00395684,2234.5,2232.9,2.55027172]
[1770140043972,2.934,2234.4,2232.9,2.55027172]
[1770140044472,0.00395684,2234.5,2232.9,2.55027172]
[1770140044672,4.59795684,2234.5,2232.9,2.55027172]
[1770140045073,40.8,2234.4,2232.9,2.55027172]
[1770140046272,4.601,2234.4,2232.9,2.55027172]
[1770140046468,0.00395684,2234.5,2232.9,2.55027172]
[1770140048475,3.121,2234.4,2232.9,2.55027172]
[1770140049276,8.18,2234.3,2232.9,2.55027172]
[1770140050181,3.121,2234.4,2232.9,2.55027172]
[1770140052180,0.00395684,2234.5,2232.9,2.55027172]
[1770140053179,0.03468932,2234.5,2232.9,2.55027172]
[1770140053571,3.121,2234.4,2232.9,2.55027172]
[1770140053772,7.71,2234.4,2232.9,2.55027172]
[1770140053977,3.121,2234.4,2232.9,2.55027172]
[1770140054181,7.71,2234.4,2232.9,2.55027172]
[1770140054383,7.73862475,2234.4,2232.9,2.55027172]
[1770140054579,0.02862475,2234.3,2232.9,2.55027172]
[1770140055182,7.71,2234.4,2232.9,2.55027172]
[1770140055382,3.121,2234.4,2232.9,2.55027172]
[1770140055889,0.00395684,2234.5,2232.9,2.55027172]
[1770140057190,4.6186926,2234.4,2232.9,2.55027172]
[1770140057390,4.6176926,2234.4,2232.9,2.55027172]
[1770140057988,0.00395684,2234.5,2232.9,2.55027172]
[1770140059395,0.051613,2234.5,2232.9,2.55027172]
[1770140059692,0.00395684,2234.5,2232.9,2.55027172]
[1770140060493,0.05072005,2234.5,2232.9,2.55027172]
[1770140060792,4.575,2234.4,2232.9,2.55027172]
[1770140061092,4.62472005,2234.5,2232.9,2.55027172]
[1770140061288,0.00395684,2234.5,2232.9,2.55027172]
[1770140061494,0.00395684,2234.5,2232.9,6.53741744]
[1770140061787,0.00395684,2234.5,2233.3,2.53362752]
[1770140062092,3.20604918,2234.5,2233.3,2.53362752]
[1770140064095,0.04404211,2234.3,2233.0,2.53362752]
[1770140064296,4.584,2234.2,2233.0,2.53362752]
[1770140064894,2.63503227,2234.0,2233.0,2.53362752]
[1770140065093,4.59,2234.1,2233.0,2.53362752]
[1770140065294,4.593,2234.2,2233.0,2.53362752]
[1770140065590,4.63704211,2234.2,2233.0,2.53362752]
[1770140065797,0.04404211,2234.0,2232.7,2.5368699]
[1770140065996,0.01796224,2233.8,2232.7,2.5368699]
[1770140066295,0.01796224,2233.6,2232.7,0.00324238]
[1770140066593,0.01796224,2233.4,2232.4,2.5409687]
[1770140066993,2.65299451,2233.4,2232.4,2.5409687]
[1770140067695,0.00988388,2233.2,2232.0,2.54258989]
[1770140067894,2.63503227,2233.3,2232.0,2.54258989]
[1770140068096,4.606,2233.2,2232.0,2.54258989]
[1770140068493,39.52548409,2233.6,2232.1,2.54994982]
[1770140068494,4.608,2233.3,2232.1,2.54994982]
[1770140068693,4.608,2233.3,2232.2,2.54994982]
[1770140069199,2.63503227,2233.7,2232.2,2.54994982]
[1770140069400,4.608,2233.7,2232.4,2.54994982]
[1770140069899,4.608,2233.7,2232.1,2.55452556]
[1770140069900,2.63503227,2233.5,2232.1,2.55452556]
[1770140070198,2.63503227,2233.3,2232.1,2.55452556]
[1770140070399,2.63503227,2233.4,2232.1,2.55452556]
[1770140070800,2.63503227,2233.0,2232.1,0.00457574]
[1770140071002,10.83603227,2232.9,2232.1,0.00457574]
[1770140071193,51.6393644,2232.9,2232.1,0.00457574]
[1770140071599,4.626,2232.8,2232.1,2.55452556]
[1770140071895,0.00333213,2232.9,2232.1,2.55452556]
[1770140072095,4.63,2232.8,2232.1,2.55452556]
[1770140072699,3.121,2232.7,2232.1,0.00457574]
[1770140072898,4.634,2232.6,2231.8,2.54994982]
[1770140073397,4.636,2232.5,2231.8,2.54994982]
[1770140073693,4.636,2232.5,2231.2,2.54994982]
[1770140073897,4.636,2232.5,2231.2,2.55450473]
[1770140074502,0.11248843,2232.4,2231.2,2.55450473]
[1770140075201,4.636,2232.5,2231.2,2.55450473]
[1770140075603,4.634,2232.4,2231.2,2.55450473]
[1770140076005,0.11428259,2232.3,2231.2,2.55450473]
[1770140076801,4.633,2232.2,2231.2,2.55450473]
[1770140077305,4.74728259,2232.2,2231.2,2.55450473]
[1770140077906,4.633,2232.2,2231.2,2.55450473]
[1770140079908,3.121,2232.2,2231.2,2.55450473]
[1770140080697,3.121,2232.6,2231.2,2.55450473]
[1770140081612,3.121,2232.5,2231.2,2.55450473]
[1770140082706,4.629,2232.8,2231.2,2.55450473]
[1770140083306,0.15981679,2232.7,2231.2,2.55450473]
[1770140085808,0.00333213,2232.9,2231.2,2.55450473]
[1770140085809,4.77557208,2232.9,2231.2,2.55450473]
[1770140086014,0.09979031,2232.8,2231.2,2.55450473]
[1770140087409,4.619,2232.7,2231.2,2.55450473]
[1770140088114,0.09979031,2232.8,2231.2,2.55450473]
[1770140088413,4.619,2232.8,2231.2,2.55450473]
[1770140088808,0.00333213,2232.9,2231.2,2.55450473]
[1770140089006,0.00333213,2232.9,2231.2,5.21700644]
[1770140089209,0.00333213,2232.9,2231.3,2.53362752]
[1770140089210,0.11663546,2232.9,2231.3,2.53362752]
[1770140089611,0.11330333,2232.8,2231.3,2.53362752]
[1770140090715,0.11604808,2232.7,2231.3,2.53362752]
[1770140090911,0.11604808,2232.4,2231.2,0.00455491]
[1770140091215,0.11149317,2232.0,2230.4,2.49326011]
[1770140091416,3.69649317,2231.9,2230.4,2.49326011]
[1770140091611,0.11149317,2231.8,2230.4,2.49326011]
[1770140092218,0.11149317,2231.8,2230.4,2.49676844]
[1770140092423,0.10980539,2231.7,2230.4,2.49676844]
[1770140092714,2.45058504,2231.3,2229.4,2.66250171]
[1770140092918,2.45058504,2230.8,2229.1,2.66250171]
[1770140093216,1.6449741,2230.9,2228.4,2.66250171]
[1770140093217,5.083332,2230.3,2228.4,2.66250171]
[1770140093416,2.45058504,2230.3,2228.6,1.6449741]
[1770140093817,2.82050275,2230.3,2228.6,0.0048248]
[1770140094014,5.45356288,2230.3,2228.6,0.0048248]
[1770140094222,2.40384351,2230.2,2228.6,0.0048248]
[1770140094819,2.40384351,2230.2,2228.7,2.32929954]
[1770140095021,2.40384351,2230.0,2228.7,2.32929954]
[1770140095218,2.40384351,2230.0,2228.6,0.0048248]
[1770140096120,2.40384351,2230.0,2228.6,2.33412434]
[1770140096421,4.641,2229.9,2228.6,2.33412434]
[1770140096723,4.644,2230.0,2228.6,2.33412434]
[1770140097123,2.40384351,2229.9,2228.6,2.33412434]
[1770140097917,7.04984351,2229.8,2228.6,2.33412434]
[1770140098121,2.40384351,2229.7,2228.6,2.33412434]
[1770140098418,2.40384351,2229.7,2228.6,0.0048248]
[1770140099629,2.40384351,2229.7,2227.6,2.32929954]
[1770140099915,4.646,2229.8,2225.8,11.56857312]
[1770140099916,2.40384351,2228.9,2226.1,2.32929954]
[1770140100120,2.40384351,2228.7,2226.1,2.32929954]
[1770140100322,2.40384351,2228.7,2226.2,2.32929954]
[1770140100516,2.40384351,2228.5,2226.2,2.32929954]
[1770140100719,2.40806294,2228.5,2226.2,2.33408757]
[1770140100920,2.40384351,2228.4,2226.2,2.33408757]
[1770140101321,0.00421943,2228.5,2226.2,2.33408757]
[1770140101518,4.65921943,2228.5,2226.2,2.33408757]
[1770140101819,4.65921943,2228.5,2226.7,2.32929954]
[1770140101820,0.00421943,2228.5,2226.7,2.32929954]
[1770140102016,2.40806294,2228.5,2226.7,2.32929954]
[1770140102326,0.00421943,2228.5,2226.7,2.32929954]
[1770140102821,2.40806294,2228.5,2226.7,2.32929954]
[1770140103321,0.00421943,2228.5,2226.7,2.32929954]
[1770140103521,5.03484351,2229.2,2227.3,2.32929954]
[1770140103723,45.83484351,2229.2,2227.3,2.32929954]
[1770140103918,2.40384351,2229.1,2227.3,2.32929954]
[1770140104324,2.40384351,2228.9,2227.3,2.32929954]
[1770140104523,2.40823673,2228.9,2227.3,2.32929954]
[1770140105016,0.00439322,2228.9,2227.3,2.32929954]
[1770140106418,2.63306013,2230.6,2227.7,2.28471897]
[1770140106623,2.40384351,2230.8,2228.4,2.32929954]
[1770140106821,2.40384351,2230.8,2228.6,2.32929954]
[1770140107024,2.40384351,2230.8,2229.0,2.32929954]
[1770140107626,0.0036192,2230.8,2229.0,2.68548709]
[1770140107822,2.40746271,2230.8,2229.0,2.33281556]
[1770140109320,5.83246271,2230.8,2229.0,2.33281556]
[1770140109524,2.40384351,2230.7,2229.0,2.33281556]
[1770140112026,3.4286192,2230.8,2229.0,2.33281556]
[1770140112423,0.0036192,2230.8,2229.0,2.33281556]
[1770140113228,2.40746271,2230.8,2229.0,2.33281556]
[1770140114228,2.40384351,2230.6,2229.0,2.33281556]
[1770140114624,2.40384351,2230.7,2229.0,2.33281556]
[1770140116030,0.0036192,2230.8,2229.0,2.33281556]
[1770140116426,0.0036192,2230.8,2229.3,2.32929954]
[1770140118732,2.40746271,2230.8,2229.3,2.32929954]
[1770140119033,2.40384351,2230.6,2229.3,2.32929954]
[1770140119727,2.40384351,2230.5,2229.3,2.32929954]
[1770140119927,3.121,2230.6,2229.3,2.32929954]
[1770140120833,5.58577943,2230.6,2229.3,2.32929954]
[1770140121835,2.46477943,2230.5,2229.3,2.32929954]
[1770140123133,3.121,2230.6,2229.3,2.32929954]
[1770140123330,2.46839863,2230.8,2229.3,2.32929954]
[1770140123934,0.0036192,2230.8,2229.4,2.30015085]
[1770140125537,2.46477943,2231.5,2230.2,2.30015085]
[1770140126037,43.26477943,2231.5,2230.2,2.30015085]
[1770140126436,2.46477943,2231.4,2230.2,2.30015085]
[1770140126733,0.00375969,2231.4,2230.2,2.30015085]
[1770140127337,2.46853912,2231.4,2230.2,2.30015085]
[1770140128637,0.00375969,2231.4,2230.2,2.30015085]
[1770140129037,2.46853912,2231.4,2230.2,2.30015085]
[1770140130336,0.00375969,2231.4,2230.2,2.30015085]
[1770140133041,2.63306013,2232.2,2230.3,2.30015085]
[1770140133343,5.58577943,2232.3,2230.6,2.30015085]
[1770140133641,2.46477943,2232.3,2230.7,2.30015085]
[1770140134145,2.46477943,2232.3,2230.8,2.30015085]
[1770140134146,0.00388336,2232.3,2230.8,2.30015085]
[1770140134346,0.00388336,2232.3,2231.0,2.30015085]
[1770140135045,2.46866279,2232.3,2231.0,2.30015085]
[1770140135541,0.00388336,2232.3,2231.0,2.30015085]
[1770140141638,2.63306013,2233.4,2231.5,2.30015085]
[1770140141843,2.4454652,2233.5,2231.6,2.30015085]
[1770140142540,2.44888586,2233.5,2231.6,2.30015085]
[1770140144441,5.08194599,2233.5,2231.6,2.30015085]
[1770140144638,2.45056128,2233.4,2231.6,2.30015085]
[1770140145741,2.45056128,2233.2,2231.6,2.30015085]
[1770140146346,2.46095815,2233.1,2231.6,2.30015085]
[1770140146949,7.05895815,2233.1,2231.6,2.30015085]
[1770140147145,2.46095815,2233.0,2231.6,2.30015085]
[1770140147946,2.46095815,2233.0,2231.5,3.587]
[1770140147947,2.40441065,2232.7,2231.1,2.30015085]
[1770140148152,2.40441065,2232.5,2231.1,2.30015085]
[1770140148448,2.40441065,2232.3,2230.8,2.30015085]
[1770140148646,2.40441065,2232.1,2230.8,2.30015085]
[1770140149643,40.8,2232.2,2230.8,2.30015085]
[1770140150044,43.20901773,2232.2,2230.8,2.30015085]
[1770140150652,2.40901773,2232.2,2230.8,2.30015085]
[1770140152755,2.31381659,2232.1,2230.8,2.30015085]
[1770140152951,9.55387672,2232.3,2230.8,2.30015085]
[1770140153150,6.92081659,2232.3,2230.8,2.30015085]
[1770140153350,2.31381659,2232.2,2230.8,2.30015085]
[1770140153953,2.31512069,2232.0,2230.8,2.30015085]
[1770140155258,2.31512069,2231.9,2230.8,2.30015085]
[1770140155459,2.32071635,2231.9,2230.8,2.30015085]
[1770140156560,4.672,2231.8,2230.8,2.30015085]
[1770140156760,6.98712069,2231.8,2230.8,2.30015085]
[1770140157066,4.672,2231.8,2230.8,2.30015085]
[1770140157653,6.98712069,2231.8,2230.8,2.30015085]
[1770140158762,4.672,2231.8,2230.8,2.30015085]
[1770140160756,4.672,2231.8,2230.7,0.004089]
[1770140160757,4.94818082,2231.7,2230.7,0.004089]
[1770140160958,4.94818082,2231.6,2230.7,1e-08]
[1770140161160,4.679,2231.5,2230.7,2.38148986]
[1770140161863,2.31512069,2231.4,2230.7,1e-08]
[1770140162264,2.31512069,2231.3,2229.9,2.38148985]
[1770140162467,2.31512069,2231.0,2229.9,2.38148985]
[1770140162659,6.99812069,2230.9,2229.9,2.38148985]
[1770140162858,43.11512069,2230.8,2229.5,2.38148985]
[1770140163163,43.43306013,2230.8,2229.5,2.38148985]
[1770140163356,43.43306013,2230.8,2229.5,2.38701731]
[1770140163559,45.74818082,2230.8,2229.5,2.38701731]
[1770140163762,2.31512069,2230.7,2229.5,2.38701731]
[1770140164064,2.31512069,2230.3,2228.9,2.38148985]
[1770140164362,2.31512069,2230.1,2228.9,2.38148985]
[1770140164665,4.71,2230.0,2228.9,2.38148985]
[1770140164864,2.31512069,2229.9,2228.3,3.587]
[1770140165161,2.32069441,2229.9,2228.3,3.59039391]
[1770140166363,0.00557372,2229.9,2228.3,3.59039391]
[1770140166866,0.00557372,2229.9,2228.4,2.38148985]
[1770140168076,0.00557372,2229.9,2228.4,4.02767196]
[1770140168376,2.31512069,2230.4,2228.5,2.38148985]
[1770140168579,4.712,2230.5,2228.5,2.38148985]
[1770140169074,2.31512069,2231.1,2228.6,2.38148985]
[1770140169374,0.00436629,2230.5,2228.6,2.38148985]
[1770140169766,0.00436629,2230.5,2229.1,2.38148985]
[1770140169973,0.00436629,2230.5,2229.3,2.38148985]
[1770140170376,4.701,2231.2,2229.4,2.38148985]
[1770140170774,4.281,2231.3,2229.4,2.38148985]
[1770140170981,2.31512069,2231.5,2229.4,2.38148985]
[1770140171273,0.00558342,2231.5,2229.7,2.38148985]
[1770140171677,2.32070411,2231.5,2229.7,2.38148985]
[1770140172772,0.00558342,2231.5,2229.7,2.38148985]
[1770140174677,0.00558342,2231.5,2229.8,2.38148985]
[1770140174873,0.00558342,2231.5,2230.0,2.38148985]
[1770140175071,0.00558342,2231.5,2230.2,2.38148985]
[1770140175270,2.32070411,2231.5,2230.2,2.38148985]
[1770140175470,0.00558342,2231.5,2230.2,2.38148985]
[1770140176572,2.31512069,2232.1,2230.4,2.38148985]
[1770140177576,2.32062936,2232.1,2230.4,2.38148985]
[1770140178681,2.32062936,2232.1,2230.5,2.38148985]
[1770140179381,0.00550867,2232.1,2230.5,2.74161198]
[1770140179584,0.00550867,2232.1,2230.6,2.38148985]
[1770140180281,2.32062936,2232.1,2230.6,2.38148985]
[1770140180685,2.41440063,2231.9,2230.3,6.10241505]
[1770140180976,2.41440063,2231.7,2230.3,3.588]
[1770140181181,2.41440063,2231.7,2230.0,2.51853033]
[1770140181182,2.41440063,2231.3,2229.7,2.51441505]
[1770140181383,2.41440063,2231.1,2229.7,2.51441505]
[1770140182283,2.41440063,2230.9,2229.8,2.51441505]
[1770140182486,3.588,2231.0,2229.8,2.51441505]
[1770140182687,3.588,2231.0,2229.8,2.51853033]
[1770140183083,2.63306013,2231.4,2230.1,2.51441505]
[1770140183084,2.41440063,2231.4,2230.1,2.51441505]
[1770140183783,2.41440063,2231.4,2229.8,2.51441505]
[1770140184782,2.41440063,2231.1,2229.7,0.00525919]
[1770140185084,2.41440063,2230.9,2229.7,0.00525919]
[1770140185288,2.41440063,2230.7,2229.7,0.00525919]
[1770140185688,7.11040063,2230.7,2229.7,0.00525919]
[1770140185892,2.41440063,2230.6,2229.2,2.51441505]
[1770140186990,2.41440063,2230.3,2229.2,0.00478094]
[1770140187189,2.41440063,2230.0,2228.6,2.51441505]
[1770140187483,2.41440063,2229.8,2228.1,2.51441505]
[1770140187891,2.41440063,2229.8,2228.3,2.51441505]
[1770140188090,2.41440063,2229.8,2228.3,2.52413205]
[1770140188290,2.41440063,2229.8,2228.3,2.52001677]
[1770140189591,2.41440063,2229.8,2228.3,2.52413205]
[1770140190191,2.41440063,2229.5,2228.3,0.00560172]
[1770140190391,2.41440063,2229.5,2228.3,2.52001677]
[1770140190591,7.12240063,2229.4,2228.3,2.52001677]
[1770140190792,2.41440063,2229.3,2228.3,0.00560172]
[1770140190989,2.41440063,2229.3,2227.7,2.51441505]
[1770140191390,2.41440063,2229.1,2227.7,2.51441505]
[1770140191591,40.8,2229.2,2228.0,2.51441505]
[1770140191992,2.41440063,2229.1,2228.1,0.00411528]
[1770140192192,2.41440063,2229.1,2228.0,2.52167671]
[1770140192395,2.41440063,2229.1,2228.1,2.51853033]
[1770140192793,2.41440063,2229.1,2228.0,0.00314638]
[1770140193692,2.41440063,2229.1,2227.5,2.51441505]
[1770140193893,2.41440063,2229.0,2227.2,2.51441505]
[1770140194393,2.41440063,2229.0,2227.4,2.51441505]
[1770140194592,2.41440063,2229.0,2227.4,2.51850336]
[1770140195194,2.41440063,2229.0,2227.4,2.52261864]
[1770140195395,2.41440063,2228.8,2227.4,2.52261864]
[1770140195692,2.41440063,2228.8,2227.5,2.51853033]
[1770140195995,2.41440063,2228.7,2226.8,2.51441505]
[1770140196196,2.41440063,2228.6,2226.8,2.51441505]
[1770140196397,1.65047972,2228.4,2226.8,2.51441505]
[1770140196598,2.41440063,2228.3,2226.5,2.51441505]
[1770140196788,2.41440063,2228.1,2226.5,2.51782262]
[1770140196994,2.41440063,2228.2,2226.5,1.65388729]
[1770140197289,2.41440063,2228.0,2226.8,2.51441505]
[1770140197694,2.41440063,2228.0,2226.5,2.51782262]
[1770140197891,2.41440063,2228.0,2226.6,2.51853033]
[1770140198301,2.41440063,2228.0,2226.5,0.00340757]
[1770140198798,2.41440063,2227.8,2226.5,0.00340757]
[1770140199691,1.65047972,2227.7,2225.7,2.51441505]
[1770140199892,2.41440063,2227.6,2225.7,2.51441505]
[1770140200297,2.41440063,2227.2,2225.2,2.51441505]
[1770140200493,2.41440063,2227.0,2225.2,2.51441505]
[1770140200692,2.41440063,2227.0,2225.2,2.51875106]
[1770140200900,2.78040098,2227.0,2225.2,2.51875106]
[1770140201295,2.41440063,2227.0,2225.4,2.51853033]
[1770140201503,2.41440063,2226.8,2225.7,2.51441505]
[1770140201700,2.41440063,2226.8,2225.4,2.51441505]
[1770140201898,2.41440063,2226.8,2225.6,2.51441505]
[1770140202602,2.41440063,2227.1,2225.9,2.51853033]
[1770140202901,2.41440063,2226.9,2225.6,2.51441505]
[1770140203100,2.41440063,2226.7,2225.6,2.51441505]
[1770140203302,0.00322571,2226.7,2225.8,2.51441505]
[1770140203499,0.00322571,2226.7,2226.1,2.51441505]
[1770140203694,2.41440063,2227.3,2226.1,2.51853033]
[1770140203895,2.41440063,2227.3,2226.2,0.00411528]